[Event "Titled Tuesday Blitz February 07 Early 2023"]
[White "Baruch, Liam"]
[Black "Jimenez Almeida, Luis David"]
[WhiteFideId "14322064"]
[BlackFideId "22242244"]
[WhiteElo "1718"]
[BlackElo "2242"]
[Result "0-1"]
[Round "04"]
[TimeControl "180+2"]
[Date "2023.02.07"]
[WhiteClock "0:00:03"]
[BlackClock "0:00:05"]

1. e4 {[%clk 0:03:00]}  c6 {[%clk 0:02:57]} 2. d4 {[%clk 0:03:00]}  Na6 {[%clk 0:02:57]} 3. Nc3 {[%clk 0:02:56]}  Nc7 {[%clk 0:02:55]} 4. d5 {[%clk 0:02:50]}  d6 {[%clk 0:02:51]} 5. Nf3 {[%clk 0:02:46]}  g6 {[%clk 0:02:51]} 6. Bc4 {[%clk 0:02:35]}  b5 {[%clk 0:02:45]} 7. Be2 {[%clk 0:02:21]}  b4 {[%clk 0:02:43]} 8. Nb1 {[%clk 0:02:12]}  c5 {[%clk 0:02:22]} 9. c3 {[%clk 0:02:03]}  a5 {[%clk 0:02:17]} 10. O-O {[%clk 0:01:56]}  Bg7 {[%clk 0:02:16]} 11. Re1 {[%clk 0:01:48]}  Nf6 {[%clk 0:02:15]} 12. Bc4 {[%clk 0:01:44]}  Nd7 {[%clk 0:02:13]} 13. Bf4 {[%clk 0:01:43]}  Nb6 {[%clk 0:02:07]} 14. Bb3 {[%clk 0:01:22]}  O-O {[%clk 0:01:51]} 15. Qc1 {[%clk 0:01:13]}  a4 {[%clk 0:01:41]} 16. Bc2 {[%clk 0:01:03]}  a3 {[%clk 0:01:40]} 17. bxa3 {[%clk 0:00:54]}  bxc3 {[%clk 0:01:39]} 18. Bh6 {[%clk 0:00:54]}  e6 {[%clk 0:01:28]} 19. Bxg7 {[%clk 0:00:53]}  Kxg7 {[%clk 0:01:29]} 20. Nxc3 {[%clk 0:00:45]}  Qf6 {[%clk 0:01:07]} 21. e5 {[%clk 0:00:42]}  dxe5 {[%clk 0:01:06]} 22. d6 {[%clk 0:00:40]}  Ncd5 {[%clk 0:00:59]} 23. Ne4 {[%clk 0:00:39]}  Qf4 {[%clk 0:00:56]} 24. Qxf4 {[%clk 0:00:39]}  exf4 {[%clk 0:00:55]} 25. Nxc5 {[%clk 0:00:39]}  Rxa3 {[%clk 0:00:52]} 26. Bb3 {[%clk 0:00:37]}  Rd8 {[%clk 0:00:52]} 27. Nd4 {[%clk 0:00:33]}  Ba6 {[%clk 0:00:39]} 28. Ne4 {[%clk 0:00:30]}  Bc4 {[%clk 0:00:31]} 29. Bxc4 {[%clk 0:00:29]}  Nxc4 {[%clk 0:00:32]} 30. Nc6 {[%clk 0:00:30]}  Rd7 {[%clk 0:00:27]} 31. Nb8 {[%clk 0:00:22]}  Rb7 {[%clk 0:00:27]} 32. Nc6 {[%clk 0:00:22]}  Ra6 {[%clk 0:00:26]} 33. Nd4 {[%clk 0:00:18]}  Rb8 {[%clk 0:00:16]} 34. Nc5 {[%clk 0:00:18]}  Rxd6 {[%clk 0:00:16]} 35. Rab1 {[%clk 0:00:16]}  Rxb1 {[%clk 0:00:15]} 36. Rxb1 {[%clk 0:00:17]}  Nc3 {[%clk 0:00:13]} 37. Nb5 {[%clk 0:00:11]}  Nxb5 {[%clk 0:00:09]} 38. Ne4 {[%clk 0:00:11]}  Rd4 {[%clk 0:00:09]} 39. f3 {[%clk 0:00:10]}  Nba3 {[%clk 0:00:09]} 40. Rc1 {[%clk 0:00:07]}  Ne3 {[%clk 0:00:08]} 41. Kf2 {[%clk 0:00:06]}  Nac2 {[%clk 0:00:08]} 42. a4 {[%clk 0:00:06]}  f5 {[%clk 0:00:08]} 43. Nc3 {[%clk 0:00:04]}  Rd2+ {[%clk 0:00:08]} 44. Ne2 {[%clk 0:00:04]}  Rd5 {[%clk 0:00:07]} 45. Re1 {[%clk 0:00:04]}  g5 {[%clk 0:00:07]} 46. Rc1 {[%clk 0:00:03]}  Ra5 {[%clk 0:00:07]} 47. Nc3 {[%clk 0:00:02]}  Rc5 {[%clk 0:00:06]} 48. Nb5 {[%clk 0:00:02]}  Rc4 {[%clk 0:00:06]} 49. Nd6 {[%clk 0:00:02]}  Rxa4 {[%clk 0:00:06]} 50. Ne8+ {[%clk 0:00:03]}  Kg6 {[%clk 0:00:05]} 0-1


[Site "https://www.chess.com"]

[Event "Titled Tuesday Blitz February 07 Early 2023"]
[White "Mushini Ajay"]
[Black "Omelja, Artem"]
[WhiteFideId "35066188"]
[BlackFideId "14119846"]
[WhiteElo "2310"]
[BlackElo "2446"]
[Result "0-1"]
[Round "04"]
[TimeControl "180+2"]
[Date "2023.02.07"]
[WhiteClock "0:00:03"]
[BlackClock "0:00:09"]

1. e4 {[%clk 0:03:00]}  c5 {[%clk 0:02:59]} 2. Nf3 {[%clk 0:03:00]}  Nc6 {[%clk 0:02:58]} 3. Bb5 {[%clk 0:02:58]}  e6 {[%clk 0:02:57]} 4. Bxc6 {[%clk 0:02:58]}  bxc6 {[%clk 0:02:57]} 5. b3 {[%clk 0:02:59]}  d5 {[%clk 0:02:57]} 6. d3 {[%clk 0:02:57]}  Nf6 {[%clk 0:02:57]} 7. Qe2 {[%clk 0:02:57]}  Be7 {[%clk 0:02:56]} 8. c4 {[%clk 0:02:57]}  O-O {[%clk 0:02:56]} 9. O-O {[%clk 0:02:57]}  a5 {[%clk 0:02:55]} 10. Nc3 {[%clk 0:02:57]}  Qc7 {[%clk 0:02:40]} 11. Re1 {[%clk 0:02:52]}  d4 {[%clk 0:02:37]} 12. Na4 {[%clk 0:02:49]}  e5 {[%clk 0:02:37]} 13. Bg5 {[%clk 0:02:43]}  Ne8 {[%clk 0:02:33]} 14. Bxe7 {[%clk 0:02:40]}  Qxe7 {[%clk 0:02:34]} 15. Qb2 {[%clk 0:02:38]}  Nc7 {[%clk 0:02:29]} 16. Qa3 {[%clk 0:02:22]}  Na6 {[%clk 0:02:28]} 17. h3 {[%clk 0:02:10]}  Nb4 {[%clk 0:02:27]} 18. Rad1 {[%clk 0:02:04]}  Nc2 {[%clk 0:02:12]} 19. Qxc5 {[%clk 0:02:04]}  Qxc5 {[%clk 0:02:12]} 20. Nxc5 {[%clk 0:02:04]}  Nxe1 {[%clk 0:02:13]} 21. Rxe1 {[%clk 0:02:02]}  f6 {[%clk 0:02:01]} 22. Nd2 {[%clk 0:01:54]}  a4 {[%clk 0:02:01]} 23. Nxa4 {[%clk 0:01:52]}  Rf7 {[%clk 0:01:43]} 24. Kh2 {[%clk 0:01:11]}  Be6 {[%clk 0:01:36]} 25. Rf1 {[%clk 0:00:57]}  g5 {[%clk 0:01:31]} 26. g3 {[%clk 0:00:55]}  f5 {[%clk 0:01:08]} 27. Kg2 {[%clk 0:00:41]}  g4 {[%clk 0:01:06]} 28. hxg4 {[%clk 0:00:23]}  fxg4 {[%clk 0:01:04]} 29. f4 {[%clk 0:00:17]}  gxf3+ {[%clk 0:01:04]} 30. Rxf3 {[%clk 0:00:15]}  Bg4 {[%clk 0:01:00]} 31. Rxf7 {[%clk 0:00:13]}  Kxf7 {[%clk 0:01:01]} 32. Nf3 {[%clk 0:00:12]}  Bxf3+ {[%clk 0:00:57]} 33. Kxf3 {[%clk 0:00:13]}  Kg6 {[%clk 0:00:54]} 34. Kg4 {[%clk 0:00:04]}  h5+ {[%clk 0:00:53]} 35. Kh4 {[%clk 0:00:04]}  Kh6 {[%clk 0:00:53]} 36. g4 {[%clk 0:00:04]}  hxg4 {[%clk 0:00:54]} 37. Kxg4 {[%clk 0:00:05]}  Kg6 {[%clk 0:00:54]} 38. Kf3 {[%clk 0:00:05]}  Kf6 {[%clk 0:00:51]} 39. Ke2 {[%clk 0:00:03]}  Ke6 {[%clk 0:00:50]} 40. Kd2 {[%clk 0:00:03]}  Rh8 {[%clk 0:00:42]} 41. Kc2 {[%clk 0:00:03]}  Rh2+ {[%clk 0:00:41]} 42. Kb1 {[%clk 0:00:03]}  Kd6 {[%clk 0:00:39]} 43. b4 {[%clk 0:00:04]}  Rd2 {[%clk 0:00:28]} 44. Nb2 {[%clk 0:00:03]}  c5 {[%clk 0:00:23]} 45. a4 {[%clk 0:00:02]}  cxb4 {[%clk 0:00:22]} 46. Ka2 {[%clk 0:00:02]}  Kc5 {[%clk 0:00:18]} 47. Kb3 {[%clk 0:00:03]}  Kb6 {[%clk 0:00:09]} 0-1


[Site "https://www.chess.com"]

[Event "Titled Tuesday Blitz February 07 Early 2023"]
[White "Ruiz Aguilar, Pablo Alexander"]
[Black "Horak, Martin"]
[WhiteFideId "4401352"]
[BlackFideId "367095"]
[WhiteElo "2161"]
[BlackElo "2266"]
[Result "1-0"]
[Round "04"]
[TimeControl "180+2"]
[Date "2023.02.07"]
[WhiteClock "0:00:14"]
[BlackClock "0:00:04"]

1. e4 {[%clk 0:03:00]}  c5 {[%clk 0:02:58]} 2. Nf3 {[%clk 0:03:00]}  Nc6 {[%clk 0:02:58]} 3. d4 {[%clk 0:03:01]}  cxd4 {[%clk 0:02:59]} 4. Nxd4 {[%clk 0:03:01]}  Nf6 {[%clk 0:03:00]} 5. Nc3 {[%clk 0:02:58]}  e5 {[%clk 0:03:00]} 6. Ndb5 {[%clk 0:02:58]}  d6 {[%clk 0:03:00]} 7. Bg5 {[%clk 0:02:58]}  a6 {[%clk 0:03:00]} 8. Bxf6 {[%clk 0:02:58]}  gxf6 {[%clk 0:02:57]} 9. Na3 {[%clk 0:02:58]}  b5 {[%clk 0:02:57]} 10. Nd5 {[%clk 0:02:58]}  Bg7 {[%clk 0:02:57]} 11. c4 {[%clk 0:02:57]}  f5 {[%clk 0:02:25]} 12. cxb5 {[%clk 0:02:54]}  Nd4 {[%clk 0:02:25]} 13. Nc4 {[%clk 0:02:43]}  axb5 {[%clk 0:02:09]} 14. Ncb6 {[%clk 0:02:42]}  Rb8 {[%clk 0:01:59]} 15. Nxc8 {[%clk 0:02:36]}  Rxc8 {[%clk 0:01:56]} 16. Bd3 {[%clk 0:02:28]}  O-O {[%clk 0:01:31]} 17. exf5 {[%clk 0:02:23]}  e4 {[%clk 0:01:31]} 18. f6 {[%clk 0:01:58]}  Bxf6 {[%clk 0:01:24]} 19. Bxe4 {[%clk 0:01:35]}  Re8 {[%clk 0:01:19]} 20. Qg4+ {[%clk 0:01:35]}  Kh8 {[%clk 0:01:16]} 21. O-O {[%clk 0:01:35]}  Rg8 {[%clk 0:01:00]} 22. Qh5 {[%clk 0:01:12]}  Rg7 {[%clk 0:01:00]} 23. Rac1 {[%clk 0:01:01]}  Rc5 {[%clk 0:00:52]} 24. Rxc5 {[%clk 0:00:59]}  dxc5 {[%clk 0:00:51]} 25. Nxf6 {[%clk 0:00:59]}  Qxf6 {[%clk 0:00:50]} 26. Qxc5 {[%clk 0:00:59]}  Ne2+ {[%clk 0:00:32]} 27. Kh1 {[%clk 0:00:58]}  Rg5 {[%clk 0:00:29]} 28. Qc8+ {[%clk 0:00:42]}  Kg7 {[%clk 0:00:29]} 29. Bf3 {[%clk 0:00:38]}  Nd4 {[%clk 0:00:24]} 30. Qc3 {[%clk 0:00:33]}  Nxf3 {[%clk 0:00:20]} 31. gxf3 {[%clk 0:00:33]}  Qxc3 {[%clk 0:00:12]} 32. bxc3 {[%clk 0:00:32]}  Rc5 {[%clk 0:00:13]} 33. Rb1 {[%clk 0:00:29]}  Rxc3 {[%clk 0:00:12]} 34. Rxb5 {[%clk 0:00:30]}  Rc2 {[%clk 0:00:13]} 35. a4 {[%clk 0:00:27]}  Rxf2 {[%clk 0:00:13]} 36. Rf5 {[%clk 0:00:27]}  Kg6 {[%clk 0:00:11]} 37. Rf4 {[%clk 0:00:26]}  f5 {[%clk 0:00:09]} 38. Kg1 {[%clk 0:00:25]}  Ra2 {[%clk 0:00:09]} 39. Rb4 {[%clk 0:00:25]}  Kg5 {[%clk 0:00:07]} 40. h3 {[%clk 0:00:23]}  h6 {[%clk 0:00:08]} 41. Kf1 {[%clk 0:00:21]}  Kh5 {[%clk 0:00:06]} 42. Ke1 {[%clk 0:00:21]}  Kg5 {[%clk 0:00:06]} 43. Kd1 {[%clk 0:00:21]}  Rf2 {[%clk 0:00:04]} 44. f4+ {[%clk 0:00:19]}  Kh5 {[%clk 0:00:04]} 45. Rb5 {[%clk 0:00:18]}  Ra2 {[%clk 0:00:03]} 46. a5 {[%clk 0:00:18]}  Kh4 {[%clk 0:00:03]} 47. Rxf5 {[%clk 0:00:17]}  Kxh3 {[%clk 0:00:03]} 48. Rh5+ {[%clk 0:00:17]}  Kg4 {[%clk 0:00:04]} 49. Rxh6 {[%clk 0:00:16]}  Kxf4 {[%clk 0:00:04]} 50. Rh5 {[%clk 0:00:16]}  Ke4 {[%clk 0:00:04]} 51. Kc1 {[%clk 0:00:15]}  Kd4 {[%clk 0:00:04]} 52. Kb1 {[%clk 0:00:15]}  Ra4 {[%clk 0:00:04]} 53. Rh4+ {[%clk 0:00:14]} 1-0


[Site "https://www.chess.com"]

[Event "Titled Tuesday Blitz February 07 Early 2023"]
[White "Fabris, Alberto"]
[Black "Andreev, Konstantin"]
[WhiteFideId "801348"]
[BlackFideId "24239305"]
[WhiteElo "2230"]
[BlackElo "2195"]
[Result "1/2-1/2"]
[Round "04"]
[TimeControl "180+2"]
[Date "2023.02.07"]
[WhiteClock "0:00:05"]
[BlackClock "0:00:14"]

1. e4 {[%clk 0:03:00]}  c5 {[%clk 0:02:59]} 2. Nf3 {[%clk 0:03:01]}  e6 {[%clk 0:03:00]} 3. d4 {[%clk 0:03:00]}  cxd4 {[%clk 0:03:01]} 4. Nxd4 {[%clk 0:03:00]}  Nc6 {[%clk 0:03:01]} 5. Nb5 {[%clk 0:02:59]}  d6 {[%clk 0:02:58]} 6. c4 {[%clk 0:02:57]}  Nf6 {[%clk 0:02:56]} 7. N1c3 {[%clk 0:02:56]}  Be7 {[%clk 0:02:56]} 8. Be2 {[%clk 0:02:55]}  a6 {[%clk 0:02:57]} 9. Na3 {[%clk 0:02:55]}  O-O {[%clk 0:02:58]} 10. O-O {[%clk 0:02:54]}  b6 {[%clk 0:02:58]} 11. Be3 {[%clk 0:02:53]}  Bb7 {[%clk 0:02:59]} 12. f3 {[%clk 0:02:51]}  Rc8 {[%clk 0:02:58]} 13. b3 {[%clk 0:02:50]}  Na5 {[%clk 0:02:53]} 14. Nc2 {[%clk 0:02:46]}  d5 {[%clk 0:02:50]} 15. e5 {[%clk 0:02:44]}  Nd7 {[%clk 0:02:48]} 16. cxd5 {[%clk 0:02:32]}  Rxc3 {[%clk 0:02:49]} 17. d6 {[%clk 0:02:32]}  Bg5 {[%clk 0:02:48]} 18. f4 {[%clk 0:02:32]}  Bh6 {[%clk 0:02:48]} 19. Qd2 {[%clk 0:02:15]}  Rc8 {[%clk 0:02:38]} 20. Nb4 {[%clk 0:02:14]}  Nc5 {[%clk 0:02:26]} 21. Bxc5 {[%clk 0:02:11]}  Rxc5 {[%clk 0:02:27]} 22. Nxa6 {[%clk 0:02:10]}  Rd5 {[%clk 0:02:26]} 23. Qe3 {[%clk 0:02:07]}  Qa8 {[%clk 0:02:21]} 24. Nc7 {[%clk 0:02:05]}  Qa7 {[%clk 0:02:16]} 25. Nxd5 {[%clk 0:02:04]}  Bxd5 {[%clk 0:02:17]} 26. Bf3 {[%clk 0:01:58]}  Bxf3 {[%clk 0:02:13]} 27. Qxf3 {[%clk 0:01:56]}  f6 {[%clk 0:02:14]} 28. Qe4 {[%clk 0:01:47]}  Nb7 {[%clk 0:02:03]} 29. b4 {[%clk 0:01:44]}  b5+ {[%clk 0:02:01]} 30. Kh1 {[%clk 0:01:42]}  Qb6 {[%clk 0:01:38]} 31. h3 {[%clk 0:01:35]}  Nd8 {[%clk 0:01:30]} 32. Rad1 {[%clk 0:01:21]}  Qa6 {[%clk 0:00:52]} 33. d7 {[%clk 0:01:05]}  Qxa2 {[%clk 0:00:46]} 34. Qd3 {[%clk 0:01:02]}  Qb2 {[%clk 0:00:38]} 35. Qxb5 {[%clk 0:00:58]}  Qc3 {[%clk 0:00:32]} 36. Qc5 {[%clk 0:00:55]}  Qg3 {[%clk 0:00:31]} 37. Qf2 {[%clk 0:00:53]}  Qb3 {[%clk 0:00:25]} 38. Rb1 {[%clk 0:00:48]}  Qd5 {[%clk 0:00:24]} 39. Qf3 {[%clk 0:00:44]}  Qxd7 {[%clk 0:00:24]} 40. Qe4 {[%clk 0:00:39]}  Qb5 {[%clk 0:00:20]} 41. Rfe1 {[%clk 0:00:35]}  Nc6 {[%clk 0:00:19]} 42. exf6 {[%clk 0:00:33]}  Rxf6 {[%clk 0:00:19]} 43. Rbc1 {[%clk 0:00:32]}  Ne7 {[%clk 0:00:16]} 44. Qc4 {[%clk 0:00:31]}  Qxc4 {[%clk 0:00:15]} 45. Rxc4 {[%clk 0:00:30]}  Bxf4 {[%clk 0:00:15]} 46. b5 {[%clk 0:00:28]}  Nd5 {[%clk 0:00:04]} 47. Rc6 {[%clk 0:00:26]}  Bg3 {[%clk 0:00:03]} 48. Ra1 {[%clk 0:00:22]}  Kf7 {[%clk 0:00:03]} 49. b6 {[%clk 0:00:22]}  Rf2 {[%clk 0:00:02]} 50. Rb1 {[%clk 0:00:19]}  Ne3 {[%clk 0:00:02]} 51. b7 {[%clk 0:00:18]}  Nxg2 {[%clk 0:00:01]} 52. b8=Q {[%clk 0:00:17]}  Bxb8 {[%clk 0:00:02]} 53. Rxb8 {[%clk 0:00:17]}  Nf4 {[%clk 0:00:02]} 54. Rb7+ {[%clk 0:00:16]}  Kf6 {[%clk 0:00:03]} 55. Rcc7 {[%clk 0:00:15]}  g6 {[%clk 0:00:01]} 56. Rxh7 {[%clk 0:00:14]}  e5 {[%clk 0:00:02]} 57. h4 {[%clk 0:00:13]}  Kf5 {[%clk 0:00:02]} 58. Rbf7+ {[%clk 0:00:12]}  Kg4 {[%clk 0:00:02]} 59. Kg1 {[%clk 0:00:11]}  Kg3 {[%clk 0:00:02]} 60. Rxf4 {[%clk 0:00:07]}  Rxf4 {[%clk 0:00:02]} 61. h5 {[%clk 0:00:06]}  gxh5 {[%clk 0:00:02]} 62. Rxh5 {[%clk 0:00:06]}  Kf3 {[%clk 0:00:03]} 63. Rxe5 {[%clk 0:00:06]}  Rg4+ {[%clk 0:00:04]} 64. Kf1 {[%clk 0:00:04]}  Kf4 {[%clk 0:00:04]} 65. Ra5 {[%clk 0:00:03]}  Rg3 {[%clk 0:00:05]} 66. Ra4+ {[%clk 0:00:04]}  Ke5 {[%clk 0:00:06]} 67. Ra5+ {[%clk 0:00:04]}  Kd4 {[%clk 0:00:07]} 68. Ra4+ {[%clk 0:00:04]}  Kc5 {[%clk 0:00:07]} 69. Ra5+ {[%clk 0:00:04]}  Kc4 {[%clk 0:00:08]} 70. Ra2 {[%clk 0:00:05]}  Kb5 {[%clk 0:00:09]} 71. Rb2+ {[%clk 0:00:05]}  Kc4 {[%clk 0:00:09]} 72. Rc2+ {[%clk 0:00:05]}  Kb3 {[%clk 0:00:10]} 73. Rd2 {[%clk 0:00:05]}  Rc3 {[%clk 0:00:10]} 74. Re2 {[%clk 0:00:05]}  Rc8 {[%clk 0:00:11]} 75. Kf2 {[%clk 0:00:05]}  Rf8+ {[%clk 0:00:10]} 76. Ke3 {[%clk 0:00:05]}  Kc4 {[%clk 0:00:11]} 77. Kd2 {[%clk 0:00:05]}  Kd4 {[%clk 0:00:11]} 78. Rg2 {[%clk 0:00:05]}  Ra8 {[%clk 0:00:11]} 79. Rg4+ {[%clk 0:00:05]}  Ke5 {[%clk 0:00:12]} 80. Rb4 {[%clk 0:00:04]}  Ra2+ {[%clk 0:00:11]} 81. Kc3 {[%clk 0:00:04]}  Ra3+ {[%clk 0:00:12]} 82. Kb2 {[%clk 0:00:05]}  Rh3 {[%clk 0:00:07]} 83. Rb3 {[%clk 0:00:04]}  Rh2+ {[%clk 0:00:07]} 84. Ka3 {[%clk 0:00:05]}  Kd4 {[%clk 0:00:08]} 85. Rb4+ {[%clk 0:00:05]}  Kc5 {[%clk 0:00:09]} 86. Rb3 {[%clk 0:00:05]}  Rh1 {[%clk 0:00:09]} 87. Rb2 {[%clk 0:00:04]}  Kc4 {[%clk 0:00:08]} 88. Rc2+ {[%clk 0:00:05]}  Kb5 {[%clk 0:00:09]} 89. Rc3 {[%clk 0:00:04]}  Rg1 {[%clk 0:00:07]} 90. Kb3 {[%clk 0:00:05]}  Rb1+ {[%clk 0:00:07]} 91. Kc2 {[%clk 0:00:05]}  Rh1 {[%clk 0:00:07]} 92. Rg3 {[%clk 0:00:04]}  Kc4 {[%clk 0:00:08]} 93. Kd2 {[%clk 0:00:04]}  Kd5 {[%clk 0:00:09]} 94. Ke2 {[%clk 0:00:04]}  Rh2+ {[%clk 0:00:09]} 95. Kf3 {[%clk 0:00:04]}  Ke5 {[%clk 0:00:10]} 96. Rg2 {[%clk 0:00:04]}  Rh3+ {[%clk 0:00:10]} 97. Rg3 {[%clk 0:00:04]}  Rh1 {[%clk 0:00:10]} 98. Rg5+ {[%clk 0:00:04]}  Kf6 {[%clk 0:00:10]} 99. Ra5 {[%clk 0:00:04]}  Rf1+ {[%clk 0:00:10]} 100. Ke3 {[%clk 0:00:04]}  Rb1 {[%clk 0:00:11]} 101. Kd3 {[%clk 0:00:04]}  Rb3+ {[%clk 0:00:11]} 102. Kc4 {[%clk 0:00:04]}  Rh3 {[%clk 0:00:12]} 103. Kd4 {[%clk 0:00:04]}  Ke6 {[%clk 0:00:12]} 104. Ke4 {[%clk 0:00:04]}  Rh4+ {[%clk 0:00:13]} 105. Kf3 {[%clk 0:00:04]}  Rb4 {[%clk 0:00:13]} 106. Ke3 {[%clk 0:00:05]}  Kd6 {[%clk 0:00:14]} 107. Kd3 {[%clk 0:00:05]}  Kc6 {[%clk 0:00:14]} 108. Kc3 {[%clk 0:00:05]}  Rh4 {[%clk 0:00:15]} 109. Kd3 {[%clk 0:00:05]}  Kb6 {[%clk 0:00:16]} 110. Rg5 {[%clk 0:00:05]}  Rh3+ {[%clk 0:00:15]} 111. Ke4 {[%clk 0:00:05]}  Rb3 {[%clk 0:00:15]} 112. Kd4 {[%clk 0:00:05]}  Ra3 {[%clk 0:00:14]} 113. Ke4 {[%clk 0:00:05]} 1/2-1/2


[Site "https://www.chess.com"]

[Event "Titled Tuesday Blitz February 07 Early 2023"]
[White "Sharapov, Evgeny"]
[Black "Zanette, Edgard Vinicius"]
[WhiteFideId "14103133"]
[BlackFideId "2109263"]
[WhiteElo "2375"]
[BlackElo "2085"]
[Result "1-0"]
[Round "04"]
[TimeControl "180+2"]
[Date "2023.02.07"]
[WhiteClock "0:00:11"]
[BlackClock "0:00:07"]

1. e4 {[%clk 0:03:00]}  c5 {[%clk 0:02:59]} 2. Nf3 {[%clk 0:02:59]}  d6 {[%clk 0:02:59]} 3. d4 {[%clk 0:02:59]}  cxd4 {[%clk 0:03:00]} 4. Nxd4 {[%clk 0:02:59]}  Nf6 {[%clk 0:03:00]} 5. f3 {[%clk 0:02:59]}  e5 {[%clk 0:02:52]} 6. Nb3 {[%clk 0:02:59]}  Be6 {[%clk 0:02:47]} 7. c4 {[%clk 0:02:58]}  Be7 {[%clk 0:02:46]} 8. Nc3 {[%clk 0:02:58]}  O-O {[%clk 0:02:46]} 9. Be3 {[%clk 0:02:58]}  a5 {[%clk 0:02:40]} 10. Be2 {[%clk 0:02:55]}  a4 {[%clk 0:02:39]} 11. Nd2 {[%clk 0:02:54]}  a3 {[%clk 0:02:39]} 12. b3 {[%clk 0:02:54]}  Nc6 {[%clk 0:02:37]} 13. O-O {[%clk 0:02:52]}  Nd7 {[%clk 0:02:36]} 14. Nd5 {[%clk 0:02:49]}  Bg5 {[%clk 0:02:29]} 15. Bf2 {[%clk 0:02:49]}  f5 {[%clk 0:02:24]} 16. exf5 {[%clk 0:02:48]}  Bxf5 {[%clk 0:01:58]} 17. Ne4 {[%clk 0:02:47]}  Bxe4 {[%clk 0:01:51]} 18. fxe4 {[%clk 0:02:47]}  Nc5 {[%clk 0:01:27]} 19. Bf3 {[%clk 0:02:46]}  Ne7 {[%clk 0:01:19]} 20. Nxe7+ {[%clk 0:02:45]}  Qxe7 {[%clk 0:01:17]} 21. Qd5+ {[%clk 0:02:44]}  Kh8 {[%clk 0:01:16]} 22. Rad1 {[%clk 0:02:42]}  Rad8 {[%clk 0:01:10]} 23. Bg4 {[%clk 0:02:38]}  g6 {[%clk 0:01:02]} 24. g3 {[%clk 0:02:36]}  h5 {[%clk 0:00:56]} 25. Bh3 {[%clk 0:02:31]}  Qc7 {[%clk 0:00:54]} 26. Kg2 {[%clk 0:02:27]}  Kg7 {[%clk 0:00:40]} 27. Bg1 {[%clk 0:02:25]}  Rxf1 {[%clk 0:00:38]} 28. Rxf1 {[%clk 0:02:25]}  Rf8 {[%clk 0:00:38]} 29. Rxf8 {[%clk 0:02:21]}  Kxf8 {[%clk 0:00:37]} 30. b4 {[%clk 0:01:52]}  Na6 {[%clk 0:00:34]} 31. Qb5 {[%clk 0:01:42]}  Kg7 {[%clk 0:00:31]} 32. Be6 {[%clk 0:01:39]}  Qe7 {[%clk 0:00:29]} 33. Bd5 {[%clk 0:01:38]}  Nc7 {[%clk 0:00:27]} 34. Qxb7 {[%clk 0:01:36]}  Nxd5 {[%clk 0:00:27]} 35. Qxd5 {[%clk 0:01:36]}  h4 {[%clk 0:00:27]} 36. c5 {[%clk 0:01:33]}  dxc5 {[%clk 0:00:23]} 37. Bxc5 {[%clk 0:01:28]}  Qf6 {[%clk 0:00:21]} 38. b5 {[%clk 0:01:25]}  h3+ {[%clk 0:00:21]} 39. Kg1 {[%clk 0:00:52]}  Qf3 {[%clk 0:00:20]} 40. Qd7+ {[%clk 0:00:51]}  Kg8 {[%clk 0:00:18]} 41. Qxh3 {[%clk 0:00:49]}  Qd1+ {[%clk 0:00:17]} 42. Kg2 {[%clk 0:00:47]}  Qe2+ {[%clk 0:00:16]} 43. Bf2 {[%clk 0:00:46]}  Qxe4+ {[%clk 0:00:16]} 44. Kf1 {[%clk 0:00:41]}  Qc4+ {[%clk 0:00:16]} 45. Kg1 {[%clk 0:00:40]}  Qc1+ {[%clk 0:00:16]} 46. Kg2 {[%clk 0:00:40]}  Qb2 {[%clk 0:00:14]} 47. Qe6+ {[%clk 0:00:39]}  Kh7 {[%clk 0:00:14]} 48. Qf7+ {[%clk 0:00:35]}  Kh6 {[%clk 0:00:13]} 49. b6 {[%clk 0:00:23]}  e4 {[%clk 0:00:11]} 50. h4 {[%clk 0:00:19]}  Be3 {[%clk 0:00:10]} 51. b7 {[%clk 0:00:14]}  Bxf2 {[%clk 0:00:08]} 52. Qxf2 {[%clk 0:00:14]}  Qxb7 {[%clk 0:00:08]} 53. Qf4+ {[%clk 0:00:13]}  Kh7 {[%clk 0:00:09]} 54. Kh3 {[%clk 0:00:12]}  Qd7+ {[%clk 0:00:08]} 55. Qg4 {[%clk 0:00:11]}  Qxg4+ {[%clk 0:00:06]} 56. Kxg4 {[%clk 0:00:11]}  e3 {[%clk 0:00:07]} 57. Kf3 {[%clk 0:00:11]}  e2 {[%clk 0:00:07]} 58. Kxe2 {[%clk 0:00:11]} 1-0


[Site "https://www.chess.com"]

[Event "Titled Tuesday Blitz February 07 Early 2023"]
[White "Osmonbekov, Talaibek"]
[Black "Ortega Amarelle, Mariano"]
[WhiteFideId "2017253"]
[BlackFideId "3504301"]
[WhiteElo "2137"]
[BlackElo "2472"]
[Result "0-1"]
[Round "04"]
[TimeControl "180+2"]
[Date "2023.02.07"]
[WhiteClock "0:00:19"]
[BlackClock "0:01:39"]

1. d4 {[%clk 0:03:00]}  c5 {[%clk 0:02:58]} 2. c3 {[%clk 0:02:55]}  g6 {[%clk 0:02:55]} 3. Nf3 {[%clk 0:02:53]}  Bg7 {[%clk 0:02:56]} 4. Bf4 {[%clk 0:02:48]}  Nf6 {[%clk 0:02:56]} 5. Nbd2 {[%clk 0:02:47]}  b6 {[%clk 0:02:56]} 6. h3 {[%clk 0:02:46]}  Bb7 {[%clk 0:02:56]} 7. e3 {[%clk 0:02:46]}  O-O {[%clk 0:02:55]} 8. Be2 {[%clk 0:02:45]}  d6 {[%clk 0:02:55]} 9. O-O {[%clk 0:02:45]}  Nbd7 {[%clk 0:02:56]} 10. a4 {[%clk 0:02:43]}  a6 {[%clk 0:02:57]} 11. Qb3 {[%clk 0:02:43]}  Rc8 {[%clk 0:02:49]} 12. Qa2 {[%clk 0:02:36]}  Rc7 {[%clk 0:02:47]} 13. Qb3 {[%clk 0:02:34]}  Qa8 {[%clk 0:02:47]} 14. Rfe1 {[%clk 0:02:27]}  Ne4 {[%clk 0:02:42]} 15. Nxe4 {[%clk 0:02:19]}  Bxe4 {[%clk 0:02:43]} 16. Bh2 {[%clk 0:02:18]}  Rcc8 {[%clk 0:02:32]} 17. Red1 {[%clk 0:02:09]}  c4 {[%clk 0:02:10]} 18. Bxc4 {[%clk 0:01:53]}  Bxf3 {[%clk 0:02:10]} 19. gxf3 {[%clk 0:01:52]}  Qxf3 {[%clk 0:02:11]} 20. Bf1 {[%clk 0:01:52]}  Qb7 {[%clk 0:02:01]} 21. Bg2 {[%clk 0:01:30]}  Qc7 {[%clk 0:02:00]} 22. e4 {[%clk 0:01:19]}  e5 {[%clk 0:01:52]} 23. Bf1 {[%clk 0:01:11]}  a5 {[%clk 0:01:51]} 24. Bb5 {[%clk 0:01:01]}  Nf6 {[%clk 0:01:51]} 25. Qc2 {[%clk 0:00:51]}  Nh5 {[%clk 0:01:50]} 26. Qe2 {[%clk 0:00:48]}  Bh6 {[%clk 0:01:47]} 27. dxe5 {[%clk 0:00:34]}  dxe5 {[%clk 0:01:46]} 28. Rd7 {[%clk 0:00:34]}  Qc5 {[%clk 0:01:46]} 29. Rd5 {[%clk 0:00:33]}  Qe7 {[%clk 0:01:42]} 30. Rxe5 {[%clk 0:00:27]}  Qf6 {[%clk 0:01:42]} 31. Rd5 {[%clk 0:00:19]}  Bf4 {[%clk 0:01:39]} 0-1


[Site "https://www.chess.com"]